Workbook

Sheet Supplementary Table 1
A1: Database of Sources | B1: Series Matrix File(s) | C1: Platforms | D1: Tissue | E1: Normal(N) | F1: NASH(N)
A2: Gene Expression Omnibus database | B2: GSE135251 | C2: GPL18573 | D2: Liver | E2: 10 | F2: 155
A3: Gene Expression Omnibus database | B3: GSE126848 | C3: GPL18573 | D3: Liver | E3: 14 | F3: 16
A4: Gene Expression Omnibus database | B4: GSE89632 | C4: GPL14951 | D4: Liver | E4: 24 | F4: 19
A5: Gene Expression Omnibus database | B5: GSE130970 | C5: GPL16791 | D5: Liver | E5: 4 | F5: 26

Sheet Supplementary Table 2
A1: 20 Types of Post-Translational Modification Gene Sets
A2: Acetylation | B2: Succinylation | C2: Malonylation | D2: Crotonylation | E2: B-hydroxybutyrylation | F2: Lactylation | G2: Palmitoylation | H2: Myristoylation | I2: Ubiquitination | J2: Sumoylation | K2: Neddylation | L2: ISGylation | M2: ATG8ylation | N2: FAT10ylation | O2: UFMylation | P2: Methylation | Q2: Glycosylation | R2: Biotinylation | S2: S-nitrosylation | T2: Phosphorylation | U2: Deubiquitination
A3: HAT1 | B3: EP300 | C3: EP300 | D3: EP300 | E3: EP300 | F3: EP300 | G3: ZDHHC1 | H3: NMT1 | I3: UBA1 | J3: SAE1 | K3: NAE1 | L3: UBE1L | M3: ATG7 | N3: UBA6 | O3: UBA5 | P3: SETD1A | Q3: ALG1 | R3: BPL1 | S3: ADH5 | T3: AKT1 | U3: USP7
A4: AADAT | B4: PAG1 | C4: PAG1 | D4: PAG1 | E4: PAG1 | F4: PAG1 | G4: ZDHHC2 | H4: NMT2 | I4: UBA2 | J4: UBA2 | K4: UBA3 | L4: UBE2L6 | M4: ATG3 | N4: USE1 | O4: UFC1 | P4: SETD1B | Q4: ALG2 | R4: BPL2 | S4: TXN | T4: AKT2 | U4: USP20
A5: KYAT3 | B5: KAT2A | C5: KAT2A | D5: KAT8 | E5: SIRT3 | F5: HDAC1 | G5: ZDHHC3 | H5: SIRT6 | I5: UBA3 | J5: UBE2I | K5: UBE2M | L5: HERC5 | M5: ATG12 | N5: RNF4 | O5: UFL1 | P5: EHMT1 | Q5: ALG3 | S5: GSTP1 | T5: AKT3 | U5: CYLD
A6: GOT2 | B6: CPT1A | C6: SIRT5 | D6: KAT2A | E6: HDAC1 | F6: HDAC3 | G6: ZDHHC4 | H6: ARF6 | I6: UBA5 | J6: PIAS1 | K6: UBE2F | L6: HERC6 | M6: ATG5 | N6: HDAC6 | O6: UFSP1 | P6: EHMT2 | Q6: ALG4 | S6: CASP3 | T6: MAPK1 | U6: USP15
A7: KAT5 | B7: SIRT5 | D7: SIRT1 | E7: HDAC2 | G7: ZDHHC5 | H7: ARF1 | I7: UBA6 | J7: PIAS2 | K7: RBX1 | L7: TRIM25 | M7: ATG16L1 | O7: UFSP2 | P7: SUV39H1 | Q7: ALG5 | S7: TXNRD1 | T7: MAPK3 | U7: USP13
A8: KAT6A | B8: SIRT7 | D8: SIRT2 | G8: ZDHHC6 | I8: UBA7 | J8: PIAS3 | K8: RBX2 | L8: TRIM21 | M8: MAP1LC3A | P8: SUV39H2 | Q8: ALG6 | S8: PDIA3 | T8: PRKACA | U8: USP4
A9: KAT6B | D9: SIRT3 | G9: ZDHHC7 | I9: AKTIP | J9: PIAS4 | K9: CUL1 | L9: TRIM38 | M9: MAP1LC3B | P9: SETDB1 | Q9: ALG8 | S9: GAPDH | T9: PRKACB | U9: OTUB1
A10: KAT7 | G10: ZDHHC8 | I10: BIRC6 | J10: CBX4 | K10: CUL2 | L10: USP18 | M10: MAP1LC3C | P10: SETDB2 | Q10: ALG9 | T10: PRKACG | U10: USP17L2
A11: KAT8 | G11: ZDHHC9 | I11: UBE2A | J11: RANBP2 | K11: CUL3 | M11: GABARAP | P11: KMT2A | Q11: ALG12 | T11: CAMK2A | U11: USP33
A12: ELP3 | G12: ZDHHC11 | I12: UBE2B | J12: ZNF451 | K12: CUL4A | M12: GABARAPL1 | P12: KMT2B | Q12: DPM1 | T12: CAMK2B | U12: USP9X
A13: GTF3C4 | G13: ZDHHC12 | I13: UBE2C | J13: SENP1 | K13: CUL4B | M13: GABARAPL2 | P13: KMT2C | Q13: DPM2 | T13: CAMK2D | U13: USP10
A14: KAT14 | G14: ZDHHC13 | I14: UBE2D1 | J14: SENP2 | K14: CUL5 | M14: GABARAPL3 | P14: KMT2D | Q14: DPM3 | T14: CAMK2G | U14: USP2
A15: EP300 | G15: ZDHHC14 | I15: UBE2D2 | J15: SENP3 | K15: CUL7 | P15: SETD2 | Q15: DPAGT1 | T15: SRC | U15: USP16
A16: PAG1 | G16: ZDHHC15 | I16: UBE2D3 | J16: SENP4 | K16: DCUN1D1 | P16: PRDM9 | Q16: MGAT1 | T16: JAK1 | U16: USP3
A17: EIF6 | G17: ZDHHC16 | I17: UBE2D4 | J17: SENP5 | K17: DCUN1D2 | P17: DOT1L | Q17: MGAT2 | T17: JAK2 | U17: USP37
A18: KAT2B | G18: ZDHHC17 | I18: UBE2E1 | J18: SENP6 | K18: DCUN1D3 | P18: NSD1 | Q18: MGAT3 | T18: JAK3 | U18: USP19
A19: SRC | G19: ZDHHC18 | I19: UBE2E2 | J19: SENP7 | K19: DCUN1D4 | P19: NSD2 | Q19: MGAT4 | T19: TYK2 | U19: USP8
A20: FGR | G20: ZDHHC19 | I20: UBE2E3 | K20: DCUN1D5 | P20: NSD3 | Q20: MGAT5 | T20: EGFR | U20: USP12
A21: NCOA3 | G21: ZDHHC20 | I21: UBE2E4P | K21: NEDD8 | P21: SETMAR | Q21: OSTC | T21: PDGFRB | U21: USP14
A22: ACAT1 | G22: ZDHHC21 | I22: UBE2F | K22: SENP8 | P22: SMYD2 | Q22: STT3A | T22: ABL1 | U22: USP1
A23: BRD4 | G23: ZDHHC22 | I23: UBE2G1 | K23: CSN5 | P23: SMYD3 | Q23: STT3B | T23: MEK1 | U23: USP44
A24: BRD3 | G24: ZDHHC23 | I24: UBE2G2 | K24: CSN6 | P24: SMYD4 | Q24: GALNT1 | T24: MEK2 | U24: VCPIP1
A25: PBRM1 | G25: LYPLA2P1 | I25: UBE2H | P25: SMYD5 | Q25: GALNT2 | T25: PPP1CA | U25: USP11
A26: HDAC1 | G26: PPT1 | I26: UBE2I | P26: PRMT1 | Q26: GALNT3 | T26: PPP1CB | U26: USP22
A27: HDAC2 | G27: ABHD17A | I27: UBE2J1 | P27: PRMT2 | Q27: GALNT4 | T27: PPP1CC | U27: USP28
A28: HDAC3 | G28: ABHD17B | I28: UBE2J2 | P28: PRMT3 | Q28: GALNT5 | T28: PPP2CA | U28: USP36
A29: HDAC4 | G29: ABHD17C | I29: UBE2K | P29: PRMT4 | Q29: GALNT6 | T29: PPP2CB | U29: BAP1
A30: HDAC5 | I30: UBE2L1 | P30: PRMT5 | Q30: GALNT7 | T30: PTPN1 | U30: WDR48
A31: HDAC6 | I31: UBE2L2 | P31: PRMT6 | Q31: GALNT8 | T31: PTPN11 | U31: USP21
A32: HDAC7 | I32: UBE2L3 | P32: PRMT7 | Q32: GALNT9 | T32: PTPRC | U32: USP46
A33: HDAC8 | I33: UBE2L4 | P33: PRMT8 | Q33: GALNT10 | T33: DUSP1 | U33: OTUD7B
A34: HDAC9 | I34: UBE2L5 | P34: PRMT9 | Q34: GALNT11 | T34: DUSP2 | U34: USP25
A35: HDAC10 | I35: UBE2L6 | P35: KDM1A | Q35: GALNT12 | T35: DUSP3 | U35: BRCC3
A36: HDAC11 | I36: UBE2M | P36: KDM1B | Q36: GALNT13 | U36: USP48
A37: SIRT1 | I37: UBE2N | P37: KDM2A | Q37: GALNT14 | U37: USP5
A38: SIRT2 | I38: UBE2NL | P38: KDM2B | Q38: GALNT15 | U38: OTUD5
A39: SIRT3 | I39: UBE2O | P39: KDM3A | Q39: GALNT16 | U39: USP24
A40: SIRT4 | I40: UBE2QL1 | P40: KDM3B | Q40: GALNT18 | U40: USP17L24
A41: SIRT5 | I41: UBE2Q1 | P41: KDM4A | Q41: GALNT19 | U41: USP17L25
A42: SIRT6 | I42: UBE2Q2 | P42: KDM4B | Q42: GALNT20 | U42: USP17L29
A43: SIRT7 | I43: CDC34 | P43: KDM4C | Q43: GALNTL1 | U43: USP17L30
I44: UBE2R2 | P44: KDM4D | Q44: GALNTL2 | U44: USP17L26
I45: UBE2S | P45: KDM5A | Q45: B3GNT1 | U45: USP17L27
I46: UBE2T | P46: KDM5B | Q46: B3GNT2 | U46: USP17L28
I47: UBE2U | P47: KDM5C | Q47: B3GNT4 | U47: USP47
I48: UBE2V1 | P48: KDM5D | Q48: B3GNT5 | U48: ABRAXAS2
I49: UBE2V2 | P49: KDM6A | Q49: B3GNT6 | U49: USP30
I50: UBE2W | P50: KDM6B | Q50: B3GNT7 | U50: UCHL3
I51: UBE2Z | P51: KDM7A | Q51: B3GNT8 | U51: USP17L5
I52: AFF4 | P52: KDM7B | Q52: B3GNT9 | U52: USP26
I53: AMFR | Q53: B4GALT1 | U53: TNFAIP3
I54: ANAPC11 | Q54: B4GALT2 | U54: YOD1
I55: ANKIB1 | Q55: B4GALT3 | U55: USP49
I56: AREL1 | Q56: B4GALT4 | U56: OTUB2
I57: ARIH1 | Q57: B4GALT5 | U57: UCHL5
I58: ARIH2 | Q58: B4GALT6 | U58: UBC
I59: BARD1 | Q59: B4GALT7 | U59: ATXN3
I60: BFAR | U60: USP17L6P
I61: BIRC2 | U61: USP42
I62: BIRC3 | U62: USP17L1
I63: BIRC7 | U63: USP17L3
I64: BIRC8 | U64: USP35
I65: BMI1 | U65: BABAM1
I66: BRAP | U66: EIF3F
I67: BRCA1 | U67: USP51
I68: CBL | U68: PSMD14
I69: CBLB | U69: ZRANB1
I70: CBLC | U70: UCHL1
I71: CBLL1 | U71: USP29
I72: CCDC36 | U72: USP34
I73: CCNB1IP1 | U73: JOSD1
I74: CGRRF1 | U74: BABAM2
I75: CHFR | U75: OTUD3
I76: CNOT4 | U76: USP27X
I77: CUL9 | U77: USP6
I78: CYHR1 | U78: USP38
I79: DCST1 | U79: USP18
I80: DTX1 | U80: USP17L22
I81: DTX2 | U81: USP17L13
I82: DTX3 | U82: USP17L18
I83: DTX3L | U83: USP17L11
I84: DTX4 | U84: USP17L17
I85: DZIP3 | U85: USP17L20
I86: E4F1 | U86: USP17L10
I87: FANCL | U87: USP17L12
I88: G2E3 | U88: USP17L19
I89: HACE1 | U89: USP17L21
I90: HECTD1 | U90: ATXN7L3
I91: HECTD2 | U91: USP31
I92: HECTD3 | U92: JOSD2
I93: HECTD4 | U93: WDR20
I94: HECW1 | U94: OTUD7A
I95: HECW2 | U95: OTUD6B
I96: HERC1 | U96: USP32
I97: HERC2 | U97: OTUD1
I98: HERC3 | U98: USP9Y
I99: HERC4 | U99: TP53
I100: HERC5 | U100: STAMBPL1
I101: HERC6 | U101: USP40
I102: HLTF | U102: TRAF6
I103: HUWE1 | U103: TRAF2
I104: IRF2BP1 | U104: USP45
I105: IRF2BP2 | U105: RIPK1
I106: IRF2BPL | U106: ENY2
I107: ITCH | U107: OTUD6A
I108: KCMF1 | U108: USP17L15
I109: KMT2C | U109: MDM2
I110: KMT2D | U110: OTULIN
I111: LNX1 | U111: USP17L4
I112: LNX2 | U112: USP17L8
I113: LONRF1 | U113: STAMBP
I114: LONRF2 | U114: ATXN3L
I115: LONRF3 | U115: IKBKG
I116: LRSAM1 | U116: OTUD4
I117: LTN1 | U117: RPS27A
I118: MAEA | U118: ADRM1
I119: MAP3K1 | U119: MINDY1
I120: 2024-03-01 | U120: SPATA2
I121: 2024-03-10 | U121: ZC3H12A
I122: 2024-03-11 | U122: MAP3K7
I123: 2024-03-02 | U123: NLRP3
I124: 2024-03-03 | U124: TRAF3
I125: 2024-03-04 | U125: MYC
I126: 2024-03-05 | U126: MYSM1
I127: 2024-03-06 | U127: MINDY2
I128: 2024-03-07 | U128: USP39
I129: 2024-03-08 | U129: HIF1A
I130: 2024-03-09
I131: MDM2
I132: MDM4
I133: MECOM
I134: MEX3A
I135: MEX3B
I136: MEX3C
I137: MEX3D
I138: MGRN1
I139: MIB1
I140: MIB2
I141: MID1
I142: MID2
I143: MKRN1
I144: MKRN2
I145: MKRN3
I146: MKRN4P
I147: MNAT1
I148: MSL2
I149: MUL1
I150: MYCBP2
I151: MYLIP
I152: NEDD4
I153: NEDD4L
I154: NEURL1B
I155: NEURL3
I156: NFX1
I157: NFXL1
I158: NHLRC1
I159: NOSIP
I160: NSMCE1
I161: PARK2
I162: PCGF1
I163: PCGF2
I164: PCGF3
I165: PCGF5
I166: PCGF6
I167: PDZRN3
I168: PDZRN4
I169: PELI1
I170: PELI2
I171: PELI3
I172: PEX10
I173: PEX12
I174: PEX2
I175: PHF7
I176: PHRF1
I177: PJA1
I178: PJA2
I179: PLAG1
I180: PLAGL1
I181: PML
I182: PPIL2
I183: PRPF19
I184: RAD18
I185: RAG1
I186: RAPSN
I187: RBBP6
I188: RBCK1
I189: RBX1
I190: RC3H1
I191: RC3H2
I192: RCHY1
I193: RFFL
I194: RFPL1
I195: RFPL2
I196: RFPL3
I197: RFPL4A
I198: RFPL4AL1
I199: RFPL4B
I200: RFWD2
... 227 more rows

Sheet Supplementary Table 3
A1: Primer information for the genes involved in this study
A2: Gene Symbol | B2: Species | C2: Forward Primer | D2: Reverse Primer
A3: PELI2 | B3: Human | C3: 5′-GGATATGTTTCAGGTGGGCAGA-3′ | D3: 5′-TGGAAGAGTCAAATCCGGCG-3′
A4: DUSP2 | B4: Human | C4: 5′-TGTGGAGGACACACAGATGGTG-3′ | D4: 5′-GAGGTATGCCAGACAGATGGTG-3′
A5: TRIM56 | B5: Human | C5: 5'-GTATGATGAAGAGGCTCGAGAG-3' | D5: 5'-CAACTGAGAACAAGGTTGACAG-3′
A6: β-actin | B6: Human | C6: 5'-GATCATTGCTCCTCCTGAGC-3' | D6: 5'-ACTCCTGCTTGCTGATCCAC-3′

Sheet Supplementary Table 4
A1: Target sequences of human PELI2 shRNAs
A2: shRNA | B2: Target sequence
A3: shPELI2-1 | B3: GCCTCATGGAACTCATGCATT
A4: shPELI2-2 | B4: GAACCTTACACAGCAGGATA
A5: shPELI2-3 | B5: CCAGAACTGTTTGGTTGATTA

Sheet Supplementary Table 5
A1: Group | B1: β-actin | C1: PELI2 | D1: △CT | E1: Mean | F1: △△CT | G1: 2^(-△△CT)
A2: Normal 1 | B2: 24.275 | C2: 21.255 | D2: =C2-B2 -> -3.02 | E2: =AVERAGE(D2:D13) -> -2.534083333 | F2: =D2-E2 -> -0.4859166667 | G2: =POWER(2,-F2) -> 1.400475424
A3: Normal 2 | B3: 24.635 | C3: 21.475 | D3: =C3-B3 -> -3.16 | F3: =D3-E2 -> -0.6259166667 | G3: =POWER(2,-F3) -> 1.543191034
A4: Normal 3 | B4: 23.82 | C4: 20.74 | D4: -3.08 | F4: =D4-E2 -> -0.5459166667 | G4: 1.459947678
A5: Normal 4 | B5: 24.81 | C5: 21.604 | D5: -3.206 | F5: =D5-E2 -> -0.6719166667 | G5: 1.593188164
A6: Normal 5 | B6: 25.045 | C6: 21.732 | D6: -3.313 | F6: =D6-E2 -> -0.7789166667 | G6: 1.715841947
A7: Normal 6 | B7: 23.395 | C7: 19.995 | D7: -3.4 | F7: =D7-E2 -> -0.8659166667 | G7: 1.822497287
A8: NASH 1 | B8: 23.88 | C8: 22.175 | D8: -1.705 | F8: =D8-E2 -> 0.8290833333 | G8: 0.5628867785
A9: NASH 2 | B9: 22.645 | C9: 21.01 | D9: -1.635 | F9: =D9-E2 -> 0.8990833333 | G9: 0.5362273338
A10: NASH 3 | B10: 23.025 | C10: 21.315 | D10: -1.71 | F10: =D10-E2 -> 0.8240833333 | G10: 0.5648409798
A11: NASH 4 | B11: 24.195 | C11: 22.455 | D11: -1.74 | F11: =D11-E2 -> 0.7940833333 | G11: 0.5767094895
A12: NASH 5 | B12: 23.545 | C12: 21.33 | D12: -2.215 | F12: =D12-E2 -> 0.3190833333 | G12: 0.801579027
A13: NASH 6 | B13: 24.25 | C13: 22.025 | D13: -2.225 | F13: =D13-E2 -> 0.3090833333 | G13: 0.8071544501
A15: Group | B15: β-actin | C15: DUSP2 | D15: △CT | E15: Mean | F15: △△CT | G15: 2^(-△△CT)
A16: Normal 1 | B16: 25.65 | C16: 22.95 | D16: =C16-B16 -> -2.7 | E16: =AVERAGE(D16:D27) -> -2.294583333 | F16: =D16-E16 -> -0.4054166667 | G16: =POWER(2,-F16) -> 1.324471377
A17: Normal 2 | B17: 26.18 | C17: 23.46 | D17: -2.72 | F17: =D17-E16 -> -0.4254166667 | G17: 1.342960309
A18: Normal 3 | B18: 25.43 | C18: 22.98 | D18: -2.45 | F18: =D18-E16 -> -0.1554166667 | G18: 1.113743233
A19: Normal 4 | B19: 25.86 | C19: 23.67 | D19: -2.19 | F19: =D19-E16 -> 0.1045833333 | G19: 0.9300735196
A20: Normal 5 | B20: 25.8 | C20: 23.25 | D20: -2.55 | F20: =D20-E16 -> -0.2554166667 | G20: 1.193680442
A21: Normal 6 | B21: 26.07 | C21: 23.64 | D21: -2.43 | F21: =D21-E16 -> -0.1354166667 | G21: 1.098410001
A22: NASH 1 | B22: 24.89 | C22: 23.08 | D22: -1.81 | F22: =D22-E16 -> 0.4845833333 | G22: 0.7147034545
A23: NASH 2 | B23: 25.46 | C23: 23.391 | D23: -2.069 | F23: =D23-E16 -> 0.2255833333 | G23: 0.8552491479
A24: NASH 3 | B24: 24.97 | C24: 22.815 | D24: -2.155 | F24: =D24-E16 -> 0.1395833333 | G24: 0.907781295
A25: NASH 4 | B25: 24.74 | C25: 22.86 | D25: -1.88 | F25: =D25-E16 -> 0.4145833333 | G25: 0.7502361401
A26: NASH 5 | B26: 25.14 | C26: 22.932 | D26: -2.208 | F26: =D26-E16 -> 0.08658333333 | G26: 0.9417504135
A27: NASH 6 | B27: 25.18 | C27: 22.807 | D27: -2.373 | F27: =D27-E16 -> -0.07841666667 | G27: 1.055858618
A29: Group | B29: β-actin | C29: TRIM56 | D29: △CT | E29: Mean | F29: △△CT | G29: 2^(-△△CT)
A30: Normal 1 | B30: 22.315 | C30: 24.375 | D30: =C30-B30 -> 2.06 | E30: =AVERAGE(D30:D41) -> 1.9815 | F30: =D30-E30 -> 0.0785 | G30: =POWER(2,-F30) -> 0.947041794
A31: Normal 2 | B31: 23.012 | C31: 24.935 | D31: =C31-B31 -> 1.923 | F31: =D31-E30 -> -0.0585 | G31: 1.041382451
A32: Normal 3 | B32: 22.98 | C32: 24.985 | D32: 2.005 | F32: =D32-E30 -> 0.0235 | G32: 0.9838429889
A33: Normal 4 | B33: 21.995 | C33: 24.081 | D33: 2.086 | F33: =D33-E30 -> 0.1045 | G33: 0.9301272443
A34: Normal 5 | B34: 22.109 | C34: 25.045 | D34: 2.936 | F34: =D34-E30 -> 0.9545 | G34: 0.5160203977
A35: Normal 6 | B35: 21.02 | C35: 23.395 | D35: 2.375 | F35: =D35-E30 -> 0.3935 | G35: 0.7612804844
A36: NASH 1 | B36: 22.176 | C36: 23.88 | D36: 1.704 | F36: =D36-E30 -> -0.2775 | G36: 1.212092667
A37: NASH 2 | B37: 21.101 | C37: 22.645 | D37: 1.544 | F37: =D37-E30 -> -0.4375 | G37: 1.354255547
A38: NASH 3 | B38: 21.115 | C38: 23.025 | D38: 1.91 | F38: =D38-E30 -> -0.0715 | G38: 1.050808663
A39: NASH 4 | B39: 22.455 | C39: 24.195 | D39: 1.74 | F39: =D39-E30 -> -0.2415 | G39: 1.182221203
A40: NASH 5 | B40: 21.33 | C40: 22.845 | D40: 1.515 | F40: =D40-E30 -> -0.4665 | G40: 1.381753244
A41: NASH 6 | B41: 22.025 | C41: 24.005 | D41: 1.98 | F41: =D41-E30 -> -0.0015 | G41: 1.001040261
